fUST/lending_fUST_20241205
["ID","MTS","AMOUNT","RATE_DAILY","PERIOD"]
[344286536,1733328647659,-500.0,0.00027397,7]
[344286538,1733328647670,-500.0,0.00027397,7]
[344286540,1733328647679,-544.74,0.00027397,7]
[344286542,1733328647691,-7039.01,0.00027397,7]
[344286544,1733328647701,-500.0,0.00027397,7]
[344286546,1733328647711,-500.0,0.00027397,7]
[344286548,1733328647721,-1140.43,0.00027397,7]
[344286550,1733328647730,-1659.88,0.00027397,7]
[344286552,1733328647740,-246.89601,0.00027397,7]
[344286554,1733328647750,-500.0,0.00027397,7]
[344286556,1733328647760,-151.0,0.00027397,7]
[344286558,1733328647771,-161.701306,0.00027397,7]
[344286560,1733328647783,-625.754275,0.0002744,7]
[344286562,1733328647797,-625.754275,0.0002744,7]
[344286564,1733328647807,-525.520452,0.0002744,7]
[344286566,1733328647818,-525.520452,0.0002744,7]
[344286568,1733328647828,-151.0,0.0002744,7]
[344286570,1733328647838,-20937.30217331,0.00027458,2]
[344286572,1733328647856,-324291.1563,0.00027458,30]
[344286574,1733328647865,-121490.83,0.000275,5]
[344286576,1733328647875,-151.0,0.000275,7]
[344286578,1733328647885,-625.754275,0.000275,7]
[344286580,1733328647895,-625.754275,0.000275,7]
[344286582,1733328647905,-525.520452,0.000275,7]
[344286584,1733328647914,-525.520452,0.000275,7]
[344286586,1733328647924,-158.152505,0.000275,7]
[344286588,1733328647934,-150.0,0.00027523,2]
[344286590,1733328647943,-532.0,0.00027523,2]
[344286592,1733328647953,-2172.0,0.00027523,2]
[344286594,1733328647963,-2375.0,0.00027523,2]
[344286596,1733328647973,-40448.10259137,0.0002758,7]
[344286602,1733328648038,-23668.84713596,0.0002758,7]
[344286604,1733328648051,-96802.89138017,0.0002758,7]
[344286606,1733328648063,-60366.92781176,0.0002758,7]
[344286608,1733328648073,-4710.38361377,0.0002758,2]
[344286610,1733328648085,-6603.66638623,0.0002758,2]
[344286612,1733328648095,-625.754275,0.0002758,7]
[344286614,1733328648106,-625.754275,0.0002758,7]
[344286616,1733328648121,-525.520452,0.0002758,7]
[344286618,1733328648131,-525.520452,0.0002758,7]
[344286620,1733328648142,-51380.39,0.0002758,7]
[344286622,1733328648155,-8637.91,0.0002758,7]
[344286624,1733328648165,-1718.39,0.000276,2]
[344286626,1733328648175,-3484.79,0.000276,30]
[344286628,1733328648186,-25548.57780238,0.000276,5]
[344286637,1733328648198,-8915.71788216,0.000276,5]
[344286641,1733328648307,-826.53,0.000276,30]
[344286643,1733328648319,-3323.28,0.0002767,7]
[344286645,1733328648330,-637.68,0.0002767,7]
[344286646,1733328648340,-755.89,0.0002767,7]
[344286647,1733328648351,-7364.19,0.0002767,7]
[344286648,1733328648362,-500.0,0.00027671,7]
[344286649,1733328648373,-500.0,0.00027671,7]
[344286650,1733328648384,-157.29576021,0.00027671,2]
[344286651,1733328648394,-248.43360832,0.00027671,7]
[344286652,1733328648405,-500.0,0.00027671,7]
[344286653,1733328648415,-500.0,0.00027671,7]
[344286654,1733328648426,-704.12,0.00027671,7]
[344286655,1733328648437,-500.0,0.00027671,7]
[344286656,1733328648447,-500.0,0.00027671,7]
[344286657,1733328648457,-500.0,0.00027671,7]
[344286658,1733328648468,-500.0,0.00027671,7]
[344286659,1733328648479,-500.0,0.00027671,7]
[344286660,1733328648488,-730.06,0.00027671,7]
[344286661,1733328648499,-500.0,0.00027671,7]
[344286662,1733328648510,-500.0,0.00027671,7]
[344286663,1733328648520,-500.0,0.00027671,7]
[344286664,1733328648532,-500.0,0.00027671,7]
[344286665,1733328648542,-500.0,0.00027671,7]
[344286666,1733328648552,-520.3,0.00027671,7]
[344286667,1733328648563,-500.0,0.00027671,7]
[344286668,1733328648573,-527.85,0.00027671,7]
[344286669,1733328648584,-500.0,0.00027671,7]
[344286670,1733328648594,-507.33448141,0.00027671,7]
[344286671,1733328648604,-500.0,0.00027671,7]
[344286672,1733328648615,-500.0,0.00027671,7]
[344286673,1733328648625,-544.74,0.00027671,7]
[344286674,1733328648635,-7039.01,0.00027671,7]
[344286675,1733328648646,-500.0,0.00027671,7]
[344286676,1733328648655,-500.0,0.00027671,7]
[344286677,1733328648666,-1659.88,0.00027671,7]
[344286678,1733328648675,-1140.43,0.00027671,7]
[344286680,1733328648686,-500.0,0.00027671,7]
[344286681,1733328648700,-500.0,0.00027698,2]
[344286683,1733328648710,-525.82285555,0.00027698,2]
[344286685,1733328648720,-411.87766366,0.00027724,2]
[344286687,1733328648730,-625.754275,0.00027821,7]
[344286689,1733328648739,-625.754275,0.00027821,7]
[344286691,1733328648750,-3323.28,0.00027944,7]
[344286693,1733328648760,-637.68,0.00027944,7]
[344286695,1733328648770,-755.89,0.00027944,7]
[344286697,1733328648781,-7364.19,0.00027944,7]
[344286698,1733328648791,-500.0,0.00027945,7]
[344286700,1733328648802,-500.0,0.00027945,7]
[344286702,1733328648811,-525.520452,0.00027945,7]
[344286704,1733328648821,-525.520452,0.00027945,7]
[344286706,1733328648831,-500.0,0.00027945,7]
[344286708,1733328648841,-704.12,0.00027945,7]
[344286710,1733328648851,-500.0,0.00027945,7]
[344286712,1733328648861,-500.0,0.00027945,7]
[344286714,1733328648871,-730.06,0.00027945,7]
[344286716,1733328648880,-500.0,0.00027945,7]
[344286718,1733328648890,-500.0,0.00027945,7]
[344286720,1733328648900,-520.3,0.00027945,7]
[344286722,1733328648909,-500.0,0.00027945,7]
[344286724,1733328648919,-527.85,0.00027945,7]
[344286726,1733328648929,-492.64,0.00027945,7]
[344286728,1733328648938,-544.74,0.00027945,7]
[344286730,1733328648948,-7039.01,0.00027945,7]
[344286731,1733328648958,-500.0,0.00027945,7]
[344286733,1733328648969,-500.0,0.00027945,7]
[344286735,1733328648980,-1659.88,0.00027945,7]
[344286737,1733328648990,-1140.43,0.00027945,7]
[344286739,1733328649001,-294.2,0.00027945,7]
[344286741,1733328649011,-1000.0,0.00028,28]
[344286743,1733328649021,-765.721059,0.00028,2]
[344286745,1733328649032,-500.0,0.00028,10]
[344286747,1733328649042,-420.0,0.00028164,2]
[344286749,1733328649052,-3323.28,0.00028218,7]
[344286751,1733328649062,-637.68,0.00028218,7]
[344286753,1733328649072,-755.89,0.00028218,7]
[344286755,1733328649081,-7364.19,0.00028218,7]
[344286757,1733328649091,-500.0,0.00028219,7]
[344286759,1733328649101,-500.0,0.00028219,7]
[344286761,1733328649112,-500.0,0.00028219,7]
[344286763,1733328649123,-704.12,0.00028219,7]
[344286765,1733328649135,-500.0,0.00028219,7]
[344286767,1733328649145,-637.72,0.00028219,7]
[344286768,1733328649155,-730.06,0.00028219,7]
[344286771,1733328649165,-500.0,0.00028219,7]
[344286772,1733328649175,-283.24,0.00028219,7]
[344286774,1733328649185,-520.3,0.00028219,7]
[344286776,1733328649195,-500.0,0.00028219,7]
[344286778,1733328649205,-527.85,0.00028219,7]
[344286780,1733328649216,-544.74,0.00028219,7]
[344286782,1733328649227,-156.21044052,0.00028219,7]
[344286784,1733328649241,-6882.79955948,0.00028219,7]
[344286786,1733328649251,-500.0,0.00028219,7]
[344286788,1733328649261,-436.08,0.00028219,7]
[344286790,1733328649274,-1140.43,0.00028219,7]
[344286792,1733328649285,-1659.88,0.00028219,7]
[344286794,1733328649295,-411.87766366,0.00028379,2]
[344286796,1733328649305,-3323.28,0.00028492,7]
[344286798,1733328649314,-637.68,0.00028492,7]
[344286800,1733328649325,-755.89,0.00028492,7]
[344286802,1733328649334,-473.15,0.00028493,7]
[344286804,1733328649345,-461.42392006,0.00028493,7]
[344286806,1733328649354,-500.0,0.00028493,7]
[344286808,1733328649364,-704.12,0.00028493,7]
[344286810,1733328649374,-500.0,0.00028493,7]
[344286812,1733328649385,-730.06,0.00028493,7]
[344286813,1733328649395,-500.0,0.00028493,7]
[344286815,1733328649404,-520.3,0.00028493,7]
[344286817,1733328649414,-269.93,0.00028493,7]
[344286819,1733328649424,-527.85,0.00028493,7]
[344286821,1733328649434,-544.74,0.00028493,7]
[344286823,1733328649443,-7039.01,0.00028493,7]
[344286825,1733328649453,-500.0,0.00028493,7]
[344286827,1733328649463,-1659.88,0.00028493,7]
[344286829,1733328649473,-1140.43,0.00028493,7]
[344286831,1733328649482,-420.0,0.00028628,2]
[344286833,1733328649492,-3323.28,0.00028766,7]
[344286835,1733328649502,-637.68,0.00028766,7]
[344286837,1733328649512,-755.89,0.00028766,7]
[344286839,1733328649524,-500.0,0.00028767,4]
[344286841,1733328649534,-321.96,0.00028767,7]
[344286843,1733328649543,-704.12,0.00028767,7]
[344286845,1733328649553,-458.16,0.00028767,7]
[344286847,1733328649563,-730.06,0.00028767,7]
[344286849,1733328649573,-500.0,0.00028767,7]
[344286851,1733328649583,-520.3,0.00028767,7]
[344286853,1733328649592,-527.85,0.00028767,7]
[344286855,1733328649602,-544.74,0.00028767,7]
[344286856,1733328649611,-7039.01,0.00028767,7]
[344286858,1733328649620,-500.0,0.00028767,7]
[344286860,1733328649632,-1659.88,0.00028767,7]
[344286862,1733328649647,-1140.43,0.00028767,7]
[344286864,1733328649657,-1000.0,0.00029,30]
[344286866,1733328649667,-2325.78747555,0.00029,2]
[344286868,1733328649677,-411.87766366,0.00029034,2]
[344286870,1733328649689,-3323.28,0.0002904,7]
[344286872,1733328649698,-637.68,0.0002904,7]
[344286874,1733328649708,-755.89,0.0002904,7]
[344286876,1733328649718,-704.12,0.00029041,7]
[344286878,1733328649729,-730.06,0.00029041,7]
[344286880,1733328649739,-399.04,0.00029041,7]
[344286882,1733328649749,-520.3,0.00029041,7]
[344286884,1733328649759,-527.85,0.00029041,7]
[344286886,1733328649768,-544.74,0.00029041,7]
[344286888,1733328649781,-7039.01,0.00029041,7]
[344286890,1733328649791,-500.0,0.00029041,7]
[344286891,1733328649800,-1659.88,0.00029041,7]
[344286893,1733328649810,-1140.43,0.00029041,7]
[344286895,1733328649819,-155.11478801,0.00029054,2]
[344286896,1733328649828,-3323.28,0.00029314,7]
[344286898,1733328649837,-637.68,0.00029314,7]
[344286900,1733328649847,-755.89,0.00029314,7]
[344286902,1733328649856,-625.754275,0.00029315,7]
[344286904,1733328649867,-625.754275,0.00029315,7]
[344286906,1733328649876,-704.12,0.00029315,7]
[344286908,1733328649886,-730.06,0.00029315,7]
[344286910,1733328649895,-520.3,0.00029315,7]
[344286912,1733328649905,-527.85,0.00029315,7]
[344286914,1733328649915,-544.74,0.00029315,7]
[344286916,1733328649925,-7039.01,0.00029315,7]
[344286917,1733328649935,-648.4,0.00029315,7]
[344286919,1733328649946,-1659.88,0.00029315,7]
[344286921,1733328649956,-1140.43,0.00029315,7]
[344286923,1733328649966,-1029.967604,0.00029585,15]
[344286925,1733328649976,-3323.28,0.00029588,7]
[344286927,1733328649986,-637.68,0.00029588,7]
[344286929,1733328649996,-755.89,0.00029588,7]
[344286931,1733328650006,-704.12,0.00029589,7]
[344286933,1733328650016,-730.06,0.00029589,7]
[344286936,1733328650027,-520.3,0.00029589,7]
[344286938,1733328650036,-527.85,0.00029589,7]
[344286940,1733328650045,-544.74,0.00029589,7]
[344286943,1733328650055,-7039.01,0.00029589,7]
[344286945,1733328650065,-1659.88,0.00029589,7]
[344286947,1733328650074,-1140.43,0.00029589,7]
[344286949,1733328650084,-411.87766366,0.00029688,2]
[344286951,1733328650093,-3323.28,0.00029862,7]
[344286953,1733328650103,-637.68,0.00029862,7]
[344286955,1733328650117,-755.89,0.00029862,7]
[344286957,1733328650127,-704.12,0.00029863,7]
[344286959,1733328650137,-730.06,0.00029863,7]
[344286961,1733328650148,-520.3,0.00029863,7]
[344286963,1733328650160,-527.85,0.00029863,7]
[344286965,1733328650170,-544.74,0.00029863,7]
[344286974,1733328650264,-7039.01,0.00029863,7]
[344286977,1733328650277,-1659.88,0.00029863,7]
[344286978,1733328650288,-1140.43,0.00029863,7]
[344286980,1733328650298,-1842.73143837,0.0003,2]
[344286982,1733328650307,-493.61,0.0003,3]
[344286984,1733328650317,-500.0,0.0003,4]
[344286986,1733328650326,-500.0,0.0003,4]
[344286988,1733328650336,-500.0,0.0003,4]
[344286990,1733328650346,-801.42556938,0.0003,2]
[344286992,1733328650355,-1500.0,0.0003,2]
[344286994,1733328650364,-1024.94156812,0.0003,7]
[344286996,1733328650373,-167.98333014,0.0003,2]
[344286997,1733328650383,-412.89332313,0.0003,10]
[344286999,1733328650392,-189.275,0.0003,2]
[344287001,1733328650402,-314.0,0.0003,2]
[344287003,1733328650411,-246.83441214,0.00030045,2]
[344287005,1733328650420,-2572.15,0.000301,2]
[344287007,1733328650430,-300.624212,0.000301,14]
[344287009,1733328650439,-552.912235,0.00030136,6]
[344287011,1733328650448,-525.520452,0.00030136,7]
[344287013,1733328650457,-525.520452,0.00030136,7]
[344287015,1733328650468,-704.12,0.00030136,7]
[344287017,1733328650479,-730.06,0.00030136,7]
[344287019,1733328650488,-520.3,0.00030136,7]
[344287020,1733328650498,-527.85,0.00030136,7]
[344287022,1733328650508,-544.74,0.00030136,7]
[344287024,1733328650518,-7039.01,0.00030136,7]
[344287026,1733328650530,-3323.28,0.00030136,7]
[344287028,1733328650539,-1659.88,0.00030136,7]
[344287030,1733328650549,-1140.43,0.00030136,7]
[344287032,1733328650559,-637.68,0.00030136,7]
[344287034,1733328650568,-755.89,0.00030136,7]
[344287036,1733328650577,-211.66,0.000303,31]
[344287038,1733328650586,-211.66,0.000303,31]
[344287040,1733328650596,-211.66,0.000303,31]
[344287042,1733328650605,-211.66,0.000303,31]
[344287044,1733328650615,-211.66,0.000303,31]
[344287046,1733328650625,-211.66,0.000303,31]
[344287048,1733328650634,-211.66,0.000303,31]
[344287050,1733328650643,-211.66,0.000303,31]
[344287051,1733328650652,-211.66,0.000303,31]
[344287053,1733328650661,-211.66,0.000303,31]
[344287055,1733328650671,-211.66,0.000303,31]
[344287057,1733328650679,-211.66,0.000303,31]
[344287059,1733328650689,-411.87766366,0.00030343,2]
[344287061,1733328650699,-704.12,0.0003041,7]
[344287063,1733328650708,-730.06,0.0003041,7]
[344287065,1733328650717,-520.3,0.0003041,7]
[344287067,1733328650727,-527.85,0.0003041,7]
[344287069,1733328650737,-544.74,0.0003041,7]
[344287071,1733328650747,-7039.01,0.0003041,7]
[344287073,1733328650757,-3323.28,0.0003041,7]
[344287075,1733328650766,-1659.88,0.0003041,7]
[344287076,1733328650780,-1140.43,0.0003041,7]
[344287078,1733328650790,-637.68,0.0003041,7]
[344287080,1733328650800,-755.89,0.0003041,7]
[344287082,1733328650809,-587.0,0.00030479,2]
[344287084,1733328650819,-625.754275,0.00030522,7]
[344287086,1733328650828,-625.754275,0.00030522,7]
[344287088,1733328650837,-150.0,0.00030523,2]
[344287090,1733328650847,-532.0,0.00030523,2]
[344287092,1733328650856,-2172.0,0.00030523,2]
[344287094,1733328650865,-2375.0,0.00030523,2]
[344287096,1733328650876,-150.0,0.000306,7]
[344287098,1733328650886,-3200.0,0.000306,2]
[344287100,1733328650895,-502.594,0.000306,7]
[344287102,1733328650904,-151.0,0.000306,7]
[344287103,1733328650913,-704.12,0.00030684,7]
[344287105,1733328650924,-730.06,0.00030684,7]
[344287107,1733328650933,-520.3,0.00030684,7]
[344287109,1733328650943,-527.85,0.00030684,7]
[344287111,1733328650952,-544.74,0.00030684,7]
[344287113,1733328650962,-2617.34905057,0.00030684,7]
[344287116,1733328650975,-4421.66094943,0.00030684,7]
[344287117,1733328650984,-3323.28,0.00030684,7]
[344287119,1733328650995,-1659.88,0.00030684,7]
[344287121,1733328651005,-1140.43,0.00030684,7]
[344287123,1733328651015,-637.68,0.00030684,7]
[344287125,1733328651027,-755.89,0.00030684,7]
[344287127,1733328651038,-826.53,0.000307,30]
[344287129,1733328651047,-2500.0,0.0003079,3]
[344287131,1733328651057,-2500.0,0.00030799,3]
[344287133,1733328651067,-704.32,0.00030958,7]
[344287135,1733328651077,-730.18,0.00030958,7]
[344287137,1733328651086,-520.3,0.00030958,7]
[344287139,1733328651097,-527.85,0.00030958,7]
[344287141,1733328651107,-544.92,0.00030958,7]
[344287143,1733328651117,-7039.20714214,0.00030958,7]
[344287145,1733328651131,-3323.28,0.00030958,7]
[344287147,1733328651141,-1660.04,0.00030958,7]
[344287149,1733328651150,-1140.43,0.00030958,7]
[344287151,1733328651160,-637.68,0.00030958,7]
[344287153,1733328651170,-755.89,0.00030958,7]
[344287155,1733328651180,-625.754275,0.00030981,7]
[344287157,1733328651189,-625.754283,0.00030981,7]
[344287159,1733328651199,-525.520452,0.00030981,7]
[344287160,1733328651209,-525.520452,0.00030981,7]
[344287162,1733328651218,-666.0,0.00030981,2]
[344287164,1733328651227,-2594.31316897,0.00030991,21]
[344287166,1733328651236,-411.87766366,0.00030998,2]
[344287168,1733328651246,-12000.0,0.00031,30]
[344287170,1733328651256,-525.520452,0.0003108,7]
[344287172,1733328651265,-525.520452,0.0003108,7]
[344287173,1733328651277,-525.520452,0.0003108,7]
[344287174,1733328651286,-525.520452,0.0003108,7]
[344287175,1733328651296,-525.520452,0.0003108,7]
[344287176,1733328651305,-525.520447,0.0003108,7]
[344287177,1733328651315,-151.0,0.00031081,7]
[344287178,1733328651323,-151.0,0.00031081,7]
[344287179,1733328651334,-151.0,0.00031081,7]
[344287180,1733328651343,-151.0,0.00031081,7]
[344287181,1733328651353,-151.0,0.00031081,7]
[344287182,1733328651362,-230.011799,0.00031081,7]
[344287183,1733328651373,-155.334077,0.00031082,7]
[344287184,1733328651382,-151.0,0.00031082,7]
[344287185,1733328651392,-151.0,0.00031082,7]
[344287187,1733328651403,-151.0,0.00031082,7]
[344287189,1733328651412,-151.0,0.00031082,7]
[344287191,1733328651421,-151.0,0.00031082,7]
[344287193,1733328651430,-151.0,0.00031082,7]
[344287195,1733328651439,-151.0,0.00031082,7]
[344287197,1733328651448,-151.0,0.00031082,7]
[344287199,1733328651458,-151.0,0.00031082,7]
[344287201,1733328651467,-151.0,0.00031082,7]
[344287203,1733328651476,-188.471501,0.00031082,7]
[344287204,1733328651486,-151.0,0.00031082,7]
[344287207,1733328651496,-151.0,0.00031082,7]
[344287209,1733328651506,-151.0,0.00031082,7]
[344287211,1733328651516,-190.922648,0.00031082,7]
[344287212,1733328651529,-151.0,0.00031082,7]
[344287214,1733328651539,-153.112132,0.00031082,7]
[344287216,1733328651552,-151.0,0.00031082,7]
[344287218,1733328651563,-151.0,0.00031082,7]
[344287220,1733328651573,-151.0,0.00031082,7]
[344287222,1733328651582,-151.0,0.00031082,7]
[344287224,1733328651591,-151.0,0.00031082,7]
[344287226,1733328651600,-151.0,0.00031082,7]
[344287229,1733328651610,-151.0,0.00031082,7]
[344287231,1733328651619,-173.851444,0.00031082,7]
[344287233,1733328651629,-151.0,0.00031082,7]
[344287234,1733328651638,-151.0,0.00031082,7]
[344287236,1733328651647,-151.0,0.00031082,7]
[344287238,1733328651656,-151.0,0.00031082,7]
[344287240,1733328651666,-151.0,0.00031082,7]
[344287242,1733328651675,-151.0,0.00031082,7]
[344287244,1733328651686,-151.0,0.00031082,7]
[344287247,1733328651697,-151.0,0.00031082,7]
[344287249,1733328651706,-151.0,0.00031082,7]
[344287250,1733328651716,-151.0,0.00031082,7]
[344287253,1733328651725,-151.0,0.00031082,7]
[344287254,1733328651735,-260.118028,0.00031082,7]
[344287257,1733328651744,-151.0,0.00031094,7]
[344287259,1733328651754,-151.0,0.00031094,7]
[344287260,1733328651763,-199.213771,0.00031094,7]
[344287262,1733328651773,-135826.83655056,0.00031098,10]
[344287265,1733328651786,-399746.77174,0.00031098,10]
[344287802,1733328657350,-535.84346821,0.00031098,10]
[344287804,1733328657362,-368.36,0.00031098,10]
[344287806,1733328657375,-1159783.07015727,0.00031098,10]
[344287830,1733328657607,-209.0,0.00022,2]
[344287832,1733328657616,-209.0,0.00022192,2]
[344287834,1733328657627,-209.0,0.00023014,2]
[344287836,1733328657636,-210.0,0.00024164,2]
[344287837,1733328657646,-151.0,0.00024657,7]
[344287839,1733328657656,-1285.3067042,0.00024889,2]
[344287841,1733328657666,-564.72,0.0002493,7]
[344287843,1733328657675,-215.40792,0.00024931,7]
[344287845,1733328657685,-564.72,0.00025204,7]
[344287847,1733328657694,-564.72,0.00025478,7]
[344287849,1733328657704,-564.72,0.00025752,7]
[344287851,1733328657713,-191.4658759,0.00025775,2]
[344287854,1733328657724,-17.5341241,0.00025775,2]
[344287856,1733328657734,-564.72,0.00026026,7]
[344287858,1733328657743,-564.72,0.000263,7]
[344287859,1733328657753,-564.72,0.00026574,7]
[344287861,1733328657763,-564.72,0.00026848,7]
[344287863,1733328657772,-564.72,0.00027122,7]
[344287865,1733328657785,-209.0,0.00027386,2]
[344287867,1733328657794,-209.0,0.00027616,2]
[344287869,1733328657803,-6857.9807153,0.00028492,7]
[344287872,1733328657815,-506.2092847,0.00028492,7]
[344287874,1733328657824,-7364.19,0.00028766,7]
[344287875,1733328657834,-209.0,0.00028997,2]
[344287877,1733328657844,-7364.19,0.0002904,7]
[344287880,1733328657854,-7288.65592622,0.00029314,7]
[344287898,1733328658104,-75.53407378,0.00029314,7]
[344287899,1733328658122,-7364.19,0.00029588,7]
[344287900,1733328658132,-7364.19,0.00029862,7]
[344287901,1733328658142,-7364.19,0.00030136,7]
[344287902,1733328658151,-5696.69825507,0.0003041,7]
[344289279,1733328712670,-300.0,0.00024656,2]
[344289280,1733328712693,-502.3736582,0.00024657,7]
[344289281,1733328712717,-888.49,0.00024657,7]
[344289282,1733328712741,-500.0,0.00024657,7]
[344289283,1733328712764,-500.0,0.00024657,7]
[344289284,1733328712788,-535.08333154,0.00024657,7]
[344289285,1733328712812,-158.0436904,0.00024657,7]
[344289286,1733328712835,-500.0,0.00024657,7]
[344289287,1733328712861,-508.44559478,0.00024657,7]
[344289288,1733328712885,-500.0,0.00024657,7]
[344289289,1733328712909,-500.0,0.00024657,7]
[344289290,1733328712932,-500.0,0.00024657,7]
[344289291,1733328712953,-304.34248866,0.00024657,7]
[344289292,1733328712976,-500.0,0.00024657,7]
[344289293,1733328712999,-500.0,0.00024657,7]
[344289294,1733328713022,-500.0,0.00024657,7]
[344289295,1733328713045,-500.0,0.00024657,7]
[344289296,1733328713068,-500.0,0.00024657,7]
[344289297,1733328713208,-500.0,0.00024657,7]
[344289298,1733328713235,-500.0,0.00024657,7]
[344289299,1733328713260,-704.35,0.00024657,7]
[344289300,1733328713283,-500.0,0.00024657,7]
[344289301,1733328713307,-500.0,0.00024657,7]
[344289302,1733328713333,-500.0,0.00024657,7]
[344289303,1733328713356,-1104.97,0.00024657,7]
[344289304,1733328713380,-500.0,0.00024657,7]
[344289305,1733328713404,-500.0,0.00024657,7]
[344289306,1733328713426,-500.0,0.00024657,7]
[344289307,1733328713451,-500.0,0.00024657,7]
[344289308,1733328713476,-500.0,0.00024657,7]
[344289309,1733328713503,-500.0,0.00024657,7]
[344289310,1733328713528,-500.0,0.00024657,7]
[344289311,1733328713555,-500.0,0.00024657,7]
[344289312,1733328713582,-12076.58,0.00024657,7]
[344289313,1733328713606,-504.70963864,0.00024657,7]
[344289314,1733328713630,-500.0,0.00024657,7]
[344289315,1733328713657,-300.0,0.00024888,2]
[344289316,1733328713683,-500.0,0.0002493,7]
[344289317,1733328713707,-500.0,0.0002493,7]
[344289318,1733328713730,-500.0,0.0002493,7]
[344289319,1733328713752,-209.03044314,0.0002493,7]
[344289320,1733328713776,-5188.52,0.0002493,7]
[344289321,1733328713800,-500.0,0.0002493,7]
[344289322,1733328713823,-500.0,0.0002493,7]
[344289323,1733328713847,-1585.32,0.0002493,7]
[344289324,1733328713870,-503.81636849,0.0002493,7]
[344289325,1733328713894,-500.0,0.0002493,7]
[344289326,1733328713924,-432.3592236,0.0002493,7]
[344289327,1733328713949,-1169.39,0.0002493,7]
[344289328,1733328713973,-500.0,0.0002493,7]
[344289329,1733328713999,-500.0,0.0002493,7]
[344289330,1733328714024,-500.0,0.0002493,7]
[344289331,1733328714048,-500.0,0.0002493,7]
[344289332,1733328714074,-500.0,0.0002493,7]
[344289333,1733328714099,-500.0,0.0002493,7]
[344289334,1733328714126,-500.0,0.0002493,7]
[344289335,1733328714161,-888.49,0.00024931,7]
[344289336,1733328714191,-397.17807854,0.00024931,7]
[344289337,1733328714219,-500.0,0.00024931,7]
[344289338,1733328714248,-500.0,0.00024931,7]
[344289339,1733328714272,-500.0,0.00024931,7]
[344289340,1733328714296,-500.0,0.00024931,7]
[344289341,1733328714321,-500.0,0.00024931,7]
[344289342,1733328714345,-500.0,0.00024931,7]
[344289343,1733328714369,-500.0,0.00024931,7]
[344289344,1733328714400,-500.0,0.00024931,7]
[344289345,1733328714435,-500.0,0.00024931,7]
[344289346,1733328714459,-152.0,0.00024931,7]
[344289347,1733328714483,-500.0,0.00024931,7]
[344289348,1733328714507,-537.30499761,0.00024931,7]
[344289349,1733328714540,-704.35,0.00024931,7]
[344289350,1733328714568,-500.0,0.00024931,7]
[344289351,1733328714593,-500.0,0.00024931,7]
[344289352,1733328714617,-553.62012838,0.00024931,7]
[344289353,1733328714642,-1104.97,0.00024931,7]
[344289354,1733328714675,-500.0,0.00024931,7]
[344289355,1733328714702,-500.0,0.00024931,7]
[344289356,1733328714727,-503.30108265,0.00024931,7]
[344289357,1733328714751,-500.0,0.00024931,7]
[344289358,1733328714776,-500.0,0.00024931,7]
[344289359,1733328714800,-500.0,0.00024931,7]